fUST/lending_fUST_20240814
["ID","MTS","AMOUNT","RATE_DAILY","PERIOD"]
[334788058,1723565132116,-319.29739212,9.999e-05,2]
[334788059,1723565132140,-223.26161126,9.999e-05,2]
[334788060,1723565132164,-155.90530926,9.999e-05,2]
[334788061,1723565132187,-209.99150853,9.999e-05,2]
[334788062,1723565132214,-156.92027342,9.999e-05,2]
[334788063,1723565132240,-154.72922386,9.999e-05,2]
[334788064,1723565132261,-82.98824446,9.999e-05,2]
[334788067,1723565229432,-357.68277268,9.899e-05,2]
[334788068,1723565238253,-787.27595438,9.899e-05,2]
[334788069,1723565238274,-815.04577536,9.999e-05,2]
[334788070,1723565238295,-1235.48641072,9.999e-05,2]
[334788071,1723565238316,-241.14492435,9.999e-05,2]
[334788072,1723565238340,-817.13111103,0.0001,2]
[334788073,1723565238360,-2871.44430573,0.00011139,2]
[334788074,1723565250094,-3080.88889929,9.999e-05,2]
[334788075,1723565250114,-154.72922386,9.999e-05,2]
[334788076,1723565250135,-154.82191771,9.999e-05,2]
[334788077,1723565250156,-9326.47622004,0.00011139,2]
[334788085,1723565361121,-273.37336231,9.9e-05,2]
[334788086,1723565361144,-339.53622261,9.999e-05,2]
[334788087,1723565361168,-146.61025028,9.999e-05,2]
[334788089,1723565369125,-732.64139362,9.999e-05,2]
[334788090,1723565369147,-285.4487675,9.999e-05,2]
[334788091,1723565369171,-320.08358525,9.999e-05,2]
[334788092,1723565369194,-154.72922386,9.999e-05,2]
[334788093,1723565369215,-154.72922386,9.999e-05,2]
[334788094,1723565369238,-849.55198236,9.999e-05,2]
[334788095,1723565369262,-201.70451665,9.999e-05,2]
[334788096,1723565369286,-412.83860801,0.0001,2]
[334788097,1723565369310,-817.13111103,0.0001,2]
[334788098,1723565369333,-8285.22920991,0.00011139,2]
[334788099,1723565374235,-495.2814468,9.899e-05,2]
[334788100,1723565374257,-4416.85026432,0.00011139,2]
[334788101,1723565374279,-8969.37255983,0.00011139,2]
[334788102,1723565374302,-1670.74719108,0.00011139,2]
[334788103,1723565374324,-159.429187,0.00012265,2]
[334788104,1723565374346,-159.429187,0.00012323,2]
[334788105,1723565374367,-159.429187,0.00012381,2]
[334788106,1723565374388,-159.429187,0.00012439,2]
[334788107,1723565374409,-159.429187,0.00012497,2]
[334788108,1723565374430,-159.429187,0.00012556,2]
[334788109,1723565374456,-159.429187,0.00012614,2]
[334788110,1723565374479,-159.429187,0.00012672,2]
[334788111,1723565374501,-159.429187,0.0001273,2]
[334788112,1723565374522,-159.429187,0.00012788,2]
[334788113,1723565379618,206.47357658,9.999e-05,2]
[334788114,1723565380990,519.46703512,9.999e-05,2]
[334788115,1723565381285,237.07330954,9.999e-05,2]
[334788117,1723565393946,809.49275165,9.999e-05,2]
[334788118,1723565394565,182.98015147,0.00012119,2]
[334788119,1723565399683,269.14390236,9.999e-05,2]
[334788120,1723565400734,202.49167594,9.999e-05,2]
[334788124,1723565423266,1235.44224895,0.00011,2]
[334788259,1723565438366,-163.4978854,9.999e-05,2]
[334788260,1723565438378,-588.44972366,0.00011,2]
[334788286,1723565440373,-1160.31775799,0.00011,2]
[334788287,1723565440387,-4207.7902694,0.00011,2]
[334788288,1723565440399,-159.429187,0.00012846,2]
[334788289,1723565440411,-159.429187,0.00012904,2]
[334788290,1723565440422,-500.0,0.00012986,2]
[334788291,1723565440434,-2000.0,0.00013,2]
[334788292,1723565440446,-201.70451665,0.00013502,2]
[334788293,1723565440457,-1670.74719108,0.00013502,2]
[334788294,1723565440468,-154.93987458,0.00013502,2]
[334788295,1723565440478,-153.0,0.00013538,2]
[334788296,1723565440488,-153.0,0.00013538,2]
[334788297,1723565440499,-153.0,0.00013538,2]
[334788298,1723565440509,-153.0,0.00013538,2]
[334788299,1723565440518,-200.0,0.00013673,2]
[334788300,1723565440528,-200.0,0.00013673,2]
[334788301,1723565440537,-200.0,0.00013673,2]
[334788302,1723565440547,-121695.877693,0.00013678,2]
[334788303,1723565440556,-8422.98396037,0.00013688,2]
[334788304,1723565440565,-90617.77395703,0.00013688,2]
[334788305,1723565440584,-91926.04258197,0.00013688,2]
[334788306,1723565440597,-500.0,0.00013698,2]
[334788307,1723565440607,-500.0,0.00013698,2]
[334788308,1723565440617,-258.20629048,0.00013698,2]
[334788309,1723565440627,-500.0,0.00013698,2]
[334788310,1723565440638,-500.0,0.00013698,2]
[334788311,1723565440647,-500.0,0.00013698,2]
[334788312,1723565440657,-500.0,0.00013698,2]
[334788313,1723565440669,-495.15092968,0.00013698,2]
[334788314,1723565440680,-500.0,0.00013698,2]
[334788315,1723565440692,-371.54480206,0.00013698,2]
[334788316,1723565440704,-500.0,0.00013698,2]
[334788317,1723565440718,-500.0,0.00013698,2]
[334788318,1723565440728,-500.0,0.00013698,2]
[334788319,1723565440737,-500.0,0.00013698,2]
[334788320,1723565440748,-500.0,0.00013698,2]
[334788321,1723565440757,-500.0,0.00013698,2]
[334788322,1723565440768,-500.0,0.00013698,2]
[334788323,1723565440777,-500.0,0.00013698,2]
[334788324,1723565440787,-500.0,0.00013698,2]
[334788325,1723565440797,-500.0,0.00013698,2]
[334788326,1723565440807,-500.0,0.00013698,2]
[334788327,1723565440817,-500.0,0.00013698,2]
[334788328,1723565440827,-300.0,0.00013698,2]
[334788329,1723565440836,-500.0,0.00013698,2]
[334788330,1723565440848,-500.0,0.00013698,2]
[334788331,1723565440857,-500.0,0.00013698,2]
[334788332,1723565440867,-500.0,0.00013698,2]
[334788333,1723565440876,-587.01,0.00013698,2]
[334788334,1723565440886,-504.60567424,0.00013698,2]
[334788335,1723565440896,-500.0,0.00013698,2]
[334788336,1723565440906,-250.0,0.00013698,2]
[334788337,1723565440917,-506.37693255,0.00013698,2]
[334788338,1723565440928,-505.62042349,0.00013698,2]
[334788339,1723565440937,-500.0,0.00013698,2]
[334788340,1723565440947,-500.0,0.00013698,2]
[334788341,1723565440957,-236.37070852,0.00013698,2]
[334788342,1723565440967,-607.99166983,0.00013698,2]
[334788343,1723565440977,-625.05784409,0.00013698,2]
[334788344,1723565440987,-500.0,0.00013698,2]
[334788345,1723565440999,-500.0,0.00013698,2]
[334788346,1723565441010,-500.0,0.00013698,2]
[334788347,1723565441019,-500.0,0.00013698,2]
[334788348,1723565441030,-500.0,0.00013698,2]
[334788349,1723565441040,-335.41933437,0.00013698,2]
[334788350,1723565441051,-500.0,0.00013698,2]
[334788351,1723565441061,-500.0,0.00013698,2]
[334788352,1723565441071,-500.0,0.00013698,2]
[334788353,1723565441081,-512.18068449,0.00013698,2]
[334788354,1723565441091,-500.0,0.00013698,2]
[334788355,1723565441102,-500.0,0.00013698,2]
[334788356,1723565441114,-500.0,0.00013698,2]
[334788357,1723565441130,-500.0,0.00013698,2]
[334788358,1723565441140,-408.28529605,0.00013698,2]
[334788359,1723565441150,-500.0,0.00013698,2]
[334788360,1723565441160,-500.0,0.00013698,2]
[334788361,1723565441170,-500.0,0.00013698,2]
[334788362,1723565441179,-500.0,0.00013698,2]
[334788363,1723565441190,-500.0,0.00013698,2]
[334788364,1723565441199,-500.0,0.00013698,2]
[334788365,1723565441209,-500.0,0.00013698,2]
[334788366,1723565441219,-500.0,0.00013698,2]
[334788367,1723565441229,-624.81,0.00013698,2]
[334788368,1723565441240,-500.0,0.00013698,2]
[334788369,1723565441251,-500.0,0.00013698,2]
[334788370,1723565441261,-500.0,0.00013698,2]
[334788371,1723565441270,-537.09112232,0.00013698,2]
[334788372,1723565441279,-500.0,0.00013698,2]
[334788373,1723565441289,-500.0,0.00013698,2]
[334788374,1723565441300,-1459.04,0.00013698,2]
[334788375,1723565441311,-512.12221757,0.00013698,2]
[334788376,1723565441321,-509.28732185,0.00013698,2]
[334788377,1723565441331,-500.0,0.00013698,2]
[334788378,1723565441341,-971.72,0.00013698,2]
[334788379,1723565441352,-504.58301167,0.00013698,2]
[334788380,1723565441362,-504.90662939,0.00013698,2]
[334788381,1723565441372,-506.73503378,0.00013698,2]
[334788382,1723565441381,-506.10342775,0.00013698,2]
[334788383,1723565441390,-500.0,0.00013698,2]
[334788384,1723565441400,-507.34383413,0.00013698,2]
[334788385,1723565441409,-235.05888984,0.00013698,2]
[334788386,1723565441419,-395.18494103,0.00013698,2]
[334788387,1723565441430,-500.0,0.00013698,2]
[334788388,1723565441440,-503.91010508,0.00013698,2]
[334788389,1723565441450,-500.0,0.00013698,2]
[334788390,1723565441460,-500.0,0.00013698,2]
[334788391,1723565441655,-500.0,0.00013698,2]
[334788392,1723565441666,-518.15476045,0.00013698,2]
[334788393,1723565441676,-500.0,0.00013698,2]
[334788394,1723565441686,-505.59683593,0.00013698,2]
[334788395,1723565441695,-500.0,0.00013698,2]
[334788396,1723565441705,-500.0,0.00013698,2]
[334788397,1723565441716,-500.0,0.00013698,2]
[334788398,1723565441727,-500.0,0.00013698,2]
[334788399,1723565441738,-257.1212263,0.00013698,2]
[334788400,1723565441750,-500.45252489,0.00013698,2]
[334788401,1723565441761,-500.0,0.00013698,2]
[334788402,1723565441770,-500.0,0.00013698,2]
[334788403,1723565441782,-500.0,0.00013698,2]
[334788404,1723565441792,-500.0,0.00013698,2]
[334788405,1723565441803,-500.0,0.00013698,2]
[334788406,1723565441812,-500.0,0.00013698,2]
[334788407,1723565441822,-500.0,0.00013698,2]
[334788408,1723565441833,-500.0,0.00013698,2]
[334788409,1723565441845,-500.0,0.00013698,2]
[334788410,1723565441857,-698.21,0.00013698,2]
[334788411,1723565441868,-500.0,0.00013698,2]
[334788412,1723565441879,-500.0,0.00013698,2]
[334788413,1723565441889,-501.34584591,0.00013698,2]
[334788414,1723565441900,-500.0,0.00013698,2]
[334788415,1723565441912,-482.43252552,0.00013698,2]
[334788416,1723565441923,-500.0,0.00013698,2]
[334788417,1723565441933,-500.0,0.00013698,2]
[334788418,1723565441943,-500.0,0.00013698,2]
[334788419,1723565441956,-500.0,0.00013698,2]
[334788420,1723565441967,-500.0,0.00013698,2]
[334788421,1723565441980,-500.0,0.00013698,2]
[334788422,1723565441990,-500.0,0.00013698,2]
[334788423,1723565442002,-500.0,0.00013698,2]
[334788424,1723565442011,-600.67,0.00013698,2]
[334788425,1723565442020,-500.0,0.00013698,2]
[334788426,1723565442030,-500.0,0.00013698,2]
[334788427,1723565442040,-500.0,0.00013698,2]
[334788428,1723565442049,-500.0,0.00013698,2]
[334788429,1723565442059,-500.0,0.00013698,2]
[334788430,1723565442068,-22.61160998,0.00013698,2]
[334788454,1723565443310,-477.38839002,0.00013698,2]
[334788455,1723565443320,-665.75,0.00013698,2]
[334788456,1723565443330,-500.0,0.00013698,2]
[334788457,1723565443342,-628.4,0.00013698,2]
[334788458,1723565443352,-500.0,0.00013698,2]
[334788459,1723565443362,-789.08,0.00013698,2]
[334788460,1723565443372,-500.0,0.00013698,2]
[334788461,1723565443381,-500.0,0.00013698,2]
[334788462,1723565443391,-500.0,0.00013698,2]
[334788463,1723565443402,-1050.42,0.00013698,2]
[334788464,1723565443413,-213.96160998,0.00013698,2]
[334788465,1723565443441,-366.25839002,0.00013698,2]
[334788466,1723565443451,-500.0,0.00013698,2]
[334788467,1723565443461,-500.0,0.00013698,2]
[334788468,1723565443472,-500.0,0.00013698,2]
[334788469,1723565443482,-1209.37,0.00013698,2]
[334788470,1723565443491,-500.0,0.00013698,2]
[334788471,1723565443510,-500.0,0.00013698,2]
[334788473,1723565443520,-500.0,0.00013698,2]
[334788475,1723565443529,-500.0,0.00013698,2]
[334788477,1723565443539,-500.0,0.00013698,2]
[334788478,1723565443548,-500.0,0.00013698,2]
[334788480,1723565443558,-653.97,0.00013698,2]
[334788482,1723565443568,-500.0,0.00013698,2]
[334788484,1723565443577,-500.0,0.00013698,2]
[334788485,1723565443587,-500.0,0.00013698,2]
[334788486,1723565443600,-500.0,0.00013698,2]
[334788487,1723565443610,-516.48352692,0.00013698,2]
[334788488,1723565443619,-574.33,0.00013698,2]
[334788489,1723565443628,-202.11526098,0.00013698,2]
[334788490,1723565443642,-297.88473902,0.00013698,2]
[334788491,1723565443651,-618.92282732,0.00013698,2]
[334788527,1723565446490,-687.7,0.0001212,2]
[334788528,1723565446506,-915.0,0.0001212,2]
[334788529,1723565446612,-68.04719108,0.0001212,2]
[334788530,1723565446621,-105.16717268,0.00013698,2]
[334788531,1723565446631,-532.94554107,0.00013698,2]
[334788532,1723565446642,-505.56303483,0.00013698,2]
[334788533,1723565446651,-201.26775599,0.00013698,2]
[334788541,1723565747501,39716.0,0.00025,60]
[334788545,1723566218440,500.0,0.00025,60]
[334788547,1723566449156,-273.37336231,9.702e-05,2]
[334788548,1723566449178,-300.0,9.998e-05,2]
[334788549,1723566449209,-300.0,9.998e-05,2]
[334788550,1723566449239,-209.37253615,9.999e-05,2]
[334788551,1723566449262,-156.83154324,9.999e-05,2]
[334788552,1723566449283,-154.76012181,9.999e-05,2]
[334788553,1723566449304,-202.45758336,9.999e-05,2]
[334788554,1723566449326,-154.76012181,9.999e-05,2]
[334788555,1723566449348,-154.76012181,9.999e-05,2]
[334788556,1723566449369,-154.72922386,9.999e-05,2]
[334788557,1723566449396,-179.15069987,9.999e-05,2]
[334788558,1723566449418,-201.6440693,9.999e-05,2]
[334788559,1723566449439,-160.25825798,0.0001,2]
[334788560,1723566449462,-420.0,0.00010998,2]
[334788561,1723566449484,-24900.0,0.000111,2]
[334788562,1723566449506,-168.325839,0.00011945,2]
[334788563,1723566449534,-168.325839,0.00012014,2]
[334788564,1723566449557,-168.325839,0.00012083,2]
[334788565,1723566449579,-183.0,0.00012098,2]
[334788566,1723566449605,-168.325839,0.00012152,2]
[334788567,1723566449630,-168.325839,0.00012221,2]
[334788568,1723566449653,-168.325839,0.0001229,2]
[334788569,1723566449676,-168.325839,0.0001236,2]
[334788570,1723566449698,-168.325839,0.00012429,2]
[334788571,1723566449721,-168.325839,0.00012498,2]
[334788572,1723566449744,-168.325839,0.00012567,2]
[334788573,1723566449767,-500.0,0.00012986,2]
[334788574,1723566449788,-2155.78612515,0.00013111,2]
[334788575,1723566449810,-267.9801969,0.00013211,2]
[334788576,1723566449831,-5323.40502986,0.00013453,2]
[334788577,1723566449852,-2000.0,0.000135,2]
[334788578,1723566449873,-296.375,0.00013598,2]
[334788579,1723566449899,-150.112233,0.000136,2]
[334788580,1723566449920,-38671.30061874,0.00013678,2]
[334788584,1723566561309,218.769189,0.00012788,2]
[334788588,1723566598723,895.075,0.00012788,2]
[334788589,1723566612700,500.0,0.00011643,2]
[334788590,1723566623450,500.0,0.00012225,2]
[334788591,1723566624756,217.36168333,0.00012788,2]
[334788615,1723566632378,-218.769189,0.00013455,2]
[334788616,1723566632389,-255.06496127,0.00013678,2]
[334788631,1723566633888,500.0,0.00011061,2]
[334788632,1723566636745,415.28072297,0.00012788,2]
[334788661,1723566638462,-2242.11262228,0.00012788,2]
[334788662,1723566638473,-15487.17162023,0.00013688,2]
[334788663,1723566638819,-8794.8128039,0.00013688,2]
[334788664,1723566638831,-11117.99051799,0.00013688,2]
[334788682,1723566642219,-661.11018533,0.00013688,2]
[334788684,1723566642790,-51343.69308025,0.00013688,2]
[334788685,1723566642799,-1869.21525702,0.00013698,2]
[334788687,1723566642811,-500.0,0.00013698,2]
[334788689,1723566642821,-500.0,0.00013698,2]
[334788691,1723566642831,-500.0,0.00013698,2]
[334788693,1723566642843,-500.0,0.00013698,2]
[334788695,1723566642852,-500.0,0.00013698,2]
[334788698,1723566642862,-500.0,0.00013698,2]
[334788701,1723566642873,-500.0,0.00013698,2]
[334788703,1723566642883,-500.0,0.00013698,2]
[334788705,1723566642894,-393.51900148,0.00013698,2]
[334788707,1723566642905,-500.0,0.00013698,2]
[334788709,1723566642916,-500.0,0.00013698,2]
[334788711,1723566642925,-500.0,0.00013698,2]
[334788712,1723566642935,-500.0,0.00013698,2]
[334788714,1723566642947,-500.0,0.00013698,2]
[334788717,1723566642956,-584.72589208,0.00013698,2]
[334788720,1723566642965,-294.03533437,0.00013698,2]
[334788722,1723566642975,-500.0,0.00013698,2]
[334788724,1723566642985,-500.0,0.00013698,2]
[334788726,1723566642994,-446.51224702,0.00013698,2]
[334788727,1723566643003,-354.08086517,0.00013698,2]
[334788728,1723566643013,-500.0,0.00013698,2]
[334788729,1723566643023,-500.0,0.00013698,2]
[334788730,1723566643033,-381.07815123,0.00013698,2]
[334788732,1723566643042,-500.0,0.00013698,2]
[334788735,1723566643052,-500.0,0.00013698,2]
[334788737,1723566643062,-500.0,0.00013698,2]
[334788739,1723566643071,-196.75950074,0.00013698,2]
[334788741,1723566643081,-500.0,0.00013698,2]
[334788743,1723566643092,-550.0,0.00013698,2]
[334788745,1723566643103,-500.0,0.00013698,2]
[334788746,1723566643112,-500.0,0.00013698,2]
[334788747,1723566643122,-500.0,0.00013698,2]
[334788748,1723566643132,-500.0,0.00013698,2]
[334788749,1723566643144,-500.0,0.00013698,2]
[334788750,1723566643155,-500.0,0.00013698,2]
[334788751,1723566643166,-500.0,0.00013698,2]
[334788752,1723566643177,-500.0,0.00013698,2]
[334788754,1723566643187,-500.0,0.00013698,2]
[334788756,1723566643197,-500.0,0.00013698,2]
[334788758,1723566643207,-500.0,0.00013698,2]
[334788760,1723566643217,-500.0,0.00013698,2]
[334788762,1723566643227,-500.0,0.00013698,2]
[334788765,1723566643238,-431.13519733,0.00013698,2]
[334788767,1723566643248,-325.21026407,0.00013698,2]
[334788769,1723566643257,-500.0,0.00013698,2]
[334788771,1723566643269,-300.0,0.00013698,2]
[334788773,1723566643280,-500.0,0.00013698,2]
[334788775,1723566643291,-500.42672675,0.00013698,2]
[334788777,1723566643301,-500.0,0.00013698,2]
[334788779,1723566643312,-558.13731337,0.00013698,2]
[334788781,1723566643323,-500.0,0.00013698,2]
[334788783,1723566643334,-222.76847662,0.00013698,2]
[334788785,1723566643343,-500.0,0.00013698,2]
[334788787,1723566643353,-1456.11,0.00013698,2]
[334788789,1723566643364,-500.0,0.00013698,2]
[334788791,1723566643374,-1015.18,0.00013698,2]
[334788793,1723566643383,-558.09572991,0.00013698,2]
[334788795,1723566643394,-500.0,0.00013698,2]
[334788797,1723566643404,-500.0,0.00013698,2]
[334788799,1723566643413,-500.0,0.00013698,2]
[334788801,1723566643422,-500.0,0.00013698,2]
[334788803,1723566643432,-500.0,0.00013698,2]
[334788805,1723566643441,-530.02,0.00013698,2]
[334788807,1723566643450,-485.61275148,0.00013698,2]
[334788809,1723566643460,-500.0,0.00013698,2]
[334788811,1723566643469,-500.0,0.00013698,2]
[334788813,1723566643478,-500.0,0.00013698,2]
[334788815,1723566643487,-500.0,0.00013698,2]
[334788817,1723566643497,-500.0,0.00013698,2]
[334788819,1723566643506,-500.0,0.00013698,2]
[334788821,1723566643517,-503.80614927,0.00013698,2]
[334788823,1723566643526,-500.0,0.00013698,2]
[334788825,1723566643537,-500.0,0.00013698,2]
[334788827,1723566643546,-500.0,0.00013698,2]
[334788829,1723566643557,-500.0,0.00013698,2]
[334788831,1723566643567,-500.0,0.00013698,2]
[334788833,1723566643578,-536.52,0.00013698,2]
[334788836,1723566643588,-470.70017869,0.00013698,2]
[334788837,1723566643598,-500.0,0.00013698,2]
[334788838,1723566643610,-514.28873313,0.00013698,2]
[334788839,1723566643620,-500.0,0.00013698,2]
[334788840,1723566643629,-500.0,0.00013698,2]
[334788841,1723566643639,-500.0,0.00013698,2]
[334788842,1723566643653,-500.0,0.00013698,2]
[334788843,1723566643662,-716.91,0.00013698,2]
[334788844,1723566643672,-158.90983671,0.00013698,2]
[334788845,1723566643681,-500.0,0.00013698,2]
[334788846,1723566643691,-500.0,0.00013698,2]
[334788847,1723566643700,-633.94,0.00013698,2]
[334788848,1723566643709,-500.0,0.00013698,2]
[334788849,1723566643719,-500.0,0.00013698,2]
[334788850,1723566643727,-518.10187527,0.00013698,2]
[334788851,1723566643737,-631.47498351,0.00013698,2]
[334788852,1723566643746,-500.0,0.00013698,2]
[334788853,1723566643755,-276.58869789,0.00013698,2]
[334788854,1723566643770,-223.41130211,0.00013698,2]
[334788855,1723566643779,-500.0,0.00013698,2]
[334788856,1723566643788,-500.0,0.00013698,2]
[334788857,1723566643798,-506.45694896,0.00013698,2]
[334788858,1723566643807,-500.0,0.00013698,2]
[334788859,1723566643817,-500.0,0.00013698,2]
[334788860,1723566643827,-500.0,0.00013698,2]
[334788861,1723566643836,-500.0,0.00013698,2]
[334788862,1723566643846,-500.0,0.00013698,2]
[334788864,1723566643856,-500.0,0.00013698,2]
[334788867,1723566643865,-500.0,0.00013698,2]
[334788868,1723566643875,-500.0,0.00013698,2]
[334788870,1723566643885,-500.0,0.00013698,2]
[334788872,1723566643897,-500.0,0.00013698,2]
[334788873,1723566643907,-502.96860766,0.00013698,2]
[334788874,1723566643916,-500.0,0.00013698,2]
[334788876,1723566643926,-500.0,0.00013698,2]
[334788878,1723566643935,-500.0,0.00013698,2]
[334788880,1723566643946,-505.34168104,0.00013698,2]
[334788882,1723566643957,-500.0,0.00013698,2]
[334788883,1723566643966,-500.0,0.00013698,2]
[334788884,1723566643976,-500.0,0.00013698,2]
[334788885,1723566643988,-500.0,0.00013698,2]
[334788886,1723566643999,-500.0,0.00013698,2]
[334788888,1723566644010,-500.0,0.00013698,2]
[334788889,1723566644021,-500.0,0.00013698,2]
[334788890,1723566644032,-500.0,0.00013698,2]
[334788891,1723566644042,-347.8709503,0.00013698,2]
[334788892,1723566644052,-500.0,0.00013698,2]
[334788893,1723566644064,-500.0,0.00013698,2]
[334788894,1723566644073,-500.0,0.00013698,2]
[334788895,1723566644082,-500.0,0.00013698,2]
[334788896,1723566644091,-500.0,0.00013698,2]
[334788897,1723566644101,-206.02511562,0.00013698,2]
[334788898,1723566644111,-501.03037611,0.00013698,2]
[334788899,1723566644121,-300.96958541,0.00013698,2]
[334788900,1723566644131,-500.0,0.00013698,2]
[334788901,1723566644140,-500.0,0.00013698,2]
[334788902,1723566644152,-500.0,0.00013698,2]
[334788903,1723566644162,-514.45262368,0.00013698,2]
[334788904,1723566644171,-500.0,0.00013698,2]
[334788905,1723566644180,-500.0,0.00013698,2]
[334788906,1723566644190,-500.0,0.00013698,2]
[334788907,1723566644200,-502.15039408,0.00013698,2]
[334788908,1723566644209,-729.78,0.00013698,2]
[334788909,1723566644218,-503.6887129,0.00013698,2]
[334788910,1723566644228,-500.0,0.00013698,2]
[334788911,1723566644238,-500.0,0.00013698,2]
[334788912,1723566644249,-500.6539124,0.00013698,2]
[334788913,1723566644258,-582.38,0.00013698,2]
[334788914,1723566644267,-500.0,0.00013698,2]
[334788915,1723566644278,-500.0,0.00013698,2]
[334788916,1723566644287,-500.0,0.00013698,2]
[334788917,1723566644297,-627.63,0.00013698,2]
[334788918,1723566644307,-505.9565507,0.00013698,2]
[334788919,1723566644317,-500.0,0.00013698,2]
[334788920,1723566644326,-501.91736511,0.00013698,2]
[334788921,1723566644336,-201.19215877,0.00013698,2]
[334788922,1723566644346,-500.0,0.00013698,2]
[334788923,1723566644358,-500.0,0.00013698,2]
[334788924,1723566644367,-504.41781418,0.00013698,2]
[334788925,1723566644377,-503.34967199,0.00013698,2]
[334788926,1723566644388,-500.0,0.00013698,2]
[334788927,1723566644400,-500.0,0.00013698,2]
[334788928,1723566644410,-595.26889214,0.00013698,2]
[334788929,1723566644421,-500.0,0.00013698,2]
[334788930,1723566644432,-395.49600483,0.00013698,2]
[334788931,1723566644443,-503.24425912,0.00013698,2]
[334788932,1723566644453,-289.95408494,0.00013698,2]
[334788933,1723566644465,-500.0,0.00013698,2]
[334788934,1723566644476,-500.0,0.00013698,2]
[334788935,1723566644485,-500.0,0.00013698,2]
[334788936,1723566644495,-712.06,0.00013698,2]
[334788937,1723566644506,-500.0,0.00013698,2]
[334788938,1723566644515,-500.0,0.00013698,2]
[334788939,1723566644524,-463.29533031,0.00013698,2]
[334788940,1723566644534,-500.0,0.00013698,2]
[334788942,1723566644544,-500.0,0.00013698,2]
[334788943,1723566644555,-695.69,0.00013698,2]
[334788945,1723566644566,-500.0,0.00013698,2]
[334788955,1723566644702,-656.66,0.00013698,2]
[334788957,1723566644715,-1123.58,0.00013698,2]
[334788958,1723566644726,-500.0,0.00013698,2]
[334788959,1723566644736,-608.21,0.00013698,2]
[334788960,1723566644747,-500.0,0.00013698,2]
[334788961,1723566644756,-500.0,0.00013698,2]
[334788962,1723566644768,-552.4,0.00013698,2]
[334788963,1723566644777,-500.0,0.00013698,2]
[334788964,1723566644787,-756.65,0.00013698,2]
[334788965,1723566644798,-500.0,0.00013698,2]
[334788966,1723566644808,-500.0,0.00013698,2]
[334788967,1723566644818,-500.0,0.00013698,2]
[334788968,1723566644828,-500.0,0.00013698,2]
[334788969,1723566644838,-500.0,0.00013698,2]
[334788970,1723566644848,-500.0,0.00013698,2]
[334788971,1723566644858,-630.05,0.00013698,2]
[334788972,1723566644867,-500.0,0.00013698,2]
[334788973,1723566644877,-500.0,0.00013698,2]
[334788974,1723566644887,-500.0,0.00013698,2]
[334788975,1723566644898,-500.0,0.00013698,2]
[334788976,1723566644907,-500.0,0.00013698,2]
[334788977,1723566644917,-273.63,0.00013698,2]
[334788978,1723566644927,-683.38,0.00013698,2]
[334788979,1723566644938,-1099.8,0.00013698,2]
[334788980,1723566644948,-197.73020184,0.00013698,2]
[334788981,1723566644957,-500.0,0.00013698,2]
[334788982,1723566644968,-857.06,0.00013698,2]
[334788983,1723566644978,-1206.93,0.00013698,2]
[334788984,1723566644989,-1563.75,0.00013698,2]
[334788985,1723566644999,-500.0,0.00013698,2]
[334788986,1723566645010,-500.0,0.00013698,2]
[334788987,1723566645021,-787.64,0.00013698,2]
[334788988,1723566645033,-2403.24,0.00013698,2]
[334788989,1723566645043,-671.66,0.00013698,2]